Cogmind - Beta 13 @@@ ROGUE MODE // 2024.07.31 @ 02:30:49 Player: Fqbits Result: Destroyed by G-47 Trooper with Particle Gun Performance ------------- Evolutions (0) 0 Regions Visited (1) 200 Robots Destroyed (8) 40 Value Destroyed (193) 193 Prototype IDs (0) 0 Alien Tech Used (0) 0 Bonus (0) 0 TOTAL SCORE: 433 Bonus ------- None Cogmind --------- Core Integrity 0/250 Matter 300/300 Energy 99/100 System Corruption 1% Temperature Cool (9) Movement Core (50) Location -10/Materials Parts ------- > --- POWER (1) -------- (None) > --- PROPULSION (2) --- (None) > --- UTILITY (2) ------ Sensor Array Signal Interpreter > --- WEAPON (2) ------- (None) > --- INVENTORY (5) ---- High-capacity Matter Pod (152) Structural Scanner Assault Rifle Assault Rifle Peak State ------------ > --- POWER ------------ Ion Engine > --- PROPULSION ------- Light Treads Light Treads > --- UTILITY ---------- Small Storage Unit Huge Storage Unit > --- WEAPON ----------- Assault Rifle Assault Rifle > --- INVENTORY -------- (None) [Rating: 7] Favorites ----------- Power Ion Engine Engine Ion Engine Propulsion Light Treads Treads Light Treads Hover Unit Hover Unit Utility Small Storage Unit Device Sensor Array Storage Small Storage Unit Processor Signal Interpreter Weapon Assault Rifle Energy Gun Backup Laser I Ballistic Gun Assault Rifle Special Melee Weapon Datajack Build | -11 -10 ------- Run | Yrd Mat Slots Evolved . | . . Power . | . . Propulsion . | . . Utility . | . . Weapon . | . . Parts Attached 19 | 6 13 Power 2 | 1 1 Engine 2 | 1 1 Core . | . . Reactor . | . . Propulsion 6 | 2 4 Treads 2 | 2 . Leg . | . . Wheel . | . . Hover 4 | . 4 Flight . | . . Utility 8 | 1 7 Device 5 | . 5 Storage 2 | 1 1 Processor 1 | . 1 Hackware . | . . Protection . | . . Artifact . | . . Weapon 3 | 2 1 Energy Gun . | . . Energy Cannon . | . . Ballistic Gun 2 | 2 . Ballistic Cannon . | . . Launcher . | . . Special Weapon . | . . Impact Weapon . | . . Slashing Weapon . | . . Piercing Weapon . | . . Special Melee Weapon 1 | . 1 Unidentified Prototypes . | . . Parts Lost 7 | . 7 Power 1 | . 1 Propulsion 3 | . 3 Utility 1 | . 1 Weapon 2 | . 2 Highest Loss Streak 5 | . 5 To Critical Strikes . | . . Average Slot Usage (%) 84 | . 84 Engine 12 | . 12 Treads 10 | . 10 Hover 11 | . 11 Device 12 | . 12 Storage 5 | . 5 Processor 4 | . 4 Energy Gun 6 | . 6 Ballistic Gun 14 | . 14 Special Melee Weapon 5 | . 5 Naked Turns . | . . Heaviest Build 14 | 14 14 Greatest Support 40 | 40 40 Greatest Overweight (x) 3 | . 3 Average Overweight (x) . | . . Largest Inventory Capacity 25 | 8 25 Average Capacity 6 | 7 6 Most Carried 5 | 5 5 Average Carried 1 | . 2 Final Capacity 8 | 8 5 Final Carried 4 | . 4 Class Distribution -------------------- 92% | Mutant 7% | Scavenger-Mutant Dominant Class ---------------- Mutant | -10/Materials Resources | -11 -10 ----------- Run | Yrd Mat Matter Collected 568 | 224 344 Remotely . | . . Salvage Created 344 | . 344 Parts 14 | . 14 Haulers Intercepted . | . . Recyclers Shooed . | . . Parts Field Recycled . | . . Retrieved Matter . | . . Parts Self-Destructed . | . . Prevented . | . . Kills | -11 -10 ------- Run | Yrd Mat Combat Hostiles Destroyed 4 | . 4 Guns 4 | . 4 Classes Destroyed 3 | . 3 Recycler 2 | . 2 Watcher 2 | . 2 Grunt 4 | . 4 Best Kill Streak 2 | . 2 Combat Bots Only 2 | . 2 Max Kills in Single Turn 1 | . 1 Gunslinging . | . . Exploded . | . . Melee . | . . Uniques/NPCs Destroyed . | . . Combat | -11 -10 -------- Run | Yrd Mat Hostile Shots Fired 64 | . 64 Missed 20 | . 20 Damage Taken 554 | . 554 Core 258 | . 258 Absorbed by Shields . | . . Regen/Repaired (Parts) 7 | . 7 Core Remaining (%) 100 | 100 . Volleys Fired 50 | . 50 Largest 2 | . 2 Hottest 40 | . 40 Shots Fired 59 | . 59 Gun 59 | . 59 Cannon . | . . Launcher . | . . Special . | . . Kinetic 18 | . 18 Thermal 41 | . 41 Explosive . | . . Electromagnetic . | . . Robot Hit Streak 10 | . 10 Robot Miss Streak 4 | . 4 Penetration Max . | . . Secondary Targets . | . . Shots Hit Robots 46 | . 46 Core Hits 17 | . 17 Critical Kills . | . . Critical Parts Destroyed . | . . Critical Strikes . | . . Melee Attacks 6 | . 6 Impact . | . . Slashing . | . . Piercing . | . . Sneak Attacks 6 | . 6 Combat Hostiles . | . . Follow-up Attacks . | . . Damage Inflicted 418 | . 418 Guns 410 | . 410 Cannons . | . . Explosions . | . . Melee . | . . Ramming 8 | . 8 Kinetic 177 | . 177 Thermal 233 | . 233 Explosive . | . . Electromagnetic . | . . Impact . | . . Slashing . | . . Piercing . | . . Highest Corruption 1 | . 1 Average Corruption 1 | . 1 Corruption Purged . | . . Corruption Blocked . | . . Effects 5 | . 5 Message Errors 2 | . 2 Matter Fused 2 | . 2 Energy Discharges 1 | . 1 Overload Shots . | . . Overflow Damage . | . . Projectiles . | . . Explosions . | . . Melee . | . . Knockbacks . | . . Impact . | . . Kinetic . | . . Secondary . | . . Self-Inflicted Damage 3 | . 3 Shots . | . . Rammed 3 | . 3 Targets Rammed 3 | . 3 Kicked . | . . Crushed . | . . Highest Temperature 29 | . 29 Average Temperature 8 | . 8 Received Heat Transfer 306 | . 306 Siege Activations . | . . Robots Corrupted . | . . Combat Hostiles . | . . Parts Fried . | . . Impact Corruptions . | . . Robots Melted . | . . Combat Hostiles . | . . Parts Melted 3 | . 3 Heat Transferred 962 | . 962 Parts Sabotaged . | . . Parts Stolen . | . . Parts Stripped . | . . Power Chain Reactions . | . . Alert | -11 -10 ------- Run | Yrd Mat Peak Influence 111 | . 111 Initial . | . . Average 17 | . 30 Maximum Alert Level . | . . Low Security (%) 100 | 100 100 Level 1 . | . . Level 2 . | . . Level 3 . | . . Level 4 . | . . Level 5 . | . . High Security . | . . Max Security . | . . Squads Dispatched 1 | . 1 Investigation 1 | . 1 Extermination . | . . Reinforcement . | . . Assault . | . . Garrison . | . . Intercept . | . . Searches Triggered . | . . Construction Impeded . | . . Haulers Reinforced . | . . Active Scanning Responses . | . . Cargo Convoy Interrupts . | . . Stealth | -11 -10 --------- Run | Yrd Mat Distress Signals 1 | . 1 Communications Jammed . | . . Distress Signals . | . . Times Spotted 12 | . 12 Peak Tracking Total 3 | . 3 Tactical Retreats 1 | . 1 Traps | -11 -10 ------- Run | Yrd Mat Traps Triggered 1 | . 1 Indirectly . | . . Trap Hack Attempts . | . . Triggered . | . . Disarmed . | . . Reprogrammed 13 | . 13 Reused 2 | . 2 Traps Extracted . | . . Installed . | . . Triggered 2 | . 2 Machines | -11 -10 ---------- Run | Yrd Mat Machines Disabled . | . . Max in Single Turn . | . . Machines Repaired . | . . Machines Dismantled . | . . Machines Sabotaged . | . . Overloaded Fab Kills . | . . Hacking | -11 -10 --------- Run | Yrd Mat Machines Accessed 6 | . 6 Terminals 3 | . 3 Fabricators . | . . Repair Stations 1 | . 1 Recycling Units 2 | . 2 Scanalyzers . | . . Garrison Access . | . . Total Hacks 28 | . 28 Successful 17 | . 17 Failed 11 | . 11 Catastrophic 2 | . 2 Database Lockouts . | . . Manual . | . . Terminals 16 | . 16 Fabricators . | . . Repair Stations 9 | . 9 Recycling Units 3 | . 3 Scanalyzers . | . . Garrison Access . | . . Terminal Hacks 9 | . 9 Record 2 | . 2 Locate Traps 2 | . 2 Reprogram Traps 4 | . 4 Maintenance Status 1 | . 1 Fabricator Hacks . | . . Repair Station Hacks 6 | . 6 Scan Component 3 | . 3 Repair 2 | . 2 Refit 1 | . 1 Recycling Unit Hacks 2 | . 2 Report Inventory 2 | . 2 Scanalyzer . | . . Garrison Access Hacks . | . . Unauthorized Hacks . | . . Terminals . | . . Fabricators . | . . Repair Stations . | . . Recycling Units . | . . Scanalyzers . | . . Garrison Access . | . . Data Cores Recovered . | . . Used . | . . Hacking Detections 5 | . 5 Full Trace Events 1 | . 1 Feedback Events . | . . Feedback Blocked . | . . Robot Schematics Acquired . | . . Robots Built . | . . Authchips . | . . Time . | . . Total Robot Build Rating . | . . Part Schematics Acquired . | . . Parts Built . | . . Authchips . | . . Time . | . . Total Part Build Rating . | . . Parts Repaired 2 | . 2 Time 52 | . 52 Parts Recycled . | . . Recycled Matter . | . . Retrieved Matter . | . . Retrieved Components . | . . Parts Scanalyzed . | . . Part Schematics Acquired . | . . Parts Damaged . | . . Bothacking | -11 -10 ------------ Run | Yrd Mat Used RIF Installer . | . . Robots Hacked 5 | . 5 Non-combat 5 | . 5 Combat . | . . Robot Hacks Applied 6 | . 6 parse_system 4 | . 4 no_distress 2 | . 2 Relay Couplers Released . | . . Fabnet Peak Effective % . | . . Robots Rewired . | . . Allies Hacked . | . . Hacks Repelled . | . . Allies | -11 -10 -------- Run | Yrd Mat Total Allies . | . . Largest Group . | . . Highest-Rated Group . | . . Highest-Rated Ally . | . . Total Orders . | . . Ally Attacks . | . . Total Damage . | . . Kills . | . . Allies Corrupted . | . . Allies Melted . | . . Intel | -11 -10 ------- Run | Yrd Mat Robot Analysis Total . | . . Derelict Logs Recovered . | . . Drone Launches . | . . Drone Recoveries . | . . Exploration | -11 -10 ------------- Run | Yrd Mat Turns Passed 1616 | 683 933 Spaces Moved 784 | 150 634 Core 76 | 20 56 Treads 289 | 130 159 Legs . | . . Wheels . | . . Hover 419 | . 419 Flight . | . . Fastest Speed 50 | 50 50 Average Speed 101 | 145 91 Slowest Speed 200 | 160 200 Overloaded Moves . | . . Propulsion Burnouts . | . . Robots Hopped . | . . Cave-ins Triggered . | . . Exploration Rate (%) 39 | 16 63 Regions Visited 1 Branch Regions . Pre-discovered Areas . | . . Known Exits Taken . | . . Unknown Exits Taken 1 | 1 . Scrap Searched . | . . Spaces Dug . | . . Terrain Destroyed . | . . Melee . | . . Projectile . | . . AOE . | . . Terrain Rammed . | . . Walls Destroyed . | . . Machines Disabled . | . . Actions | -11 -10 --------- Run | Yrd Mat Total 1545 | 615 930 Wait 655 | 454 201 Move 783 | 149 634 Hop . | . . Pick Up 20 | 6 14 Fast Attach . | . . Attach 14 | 6 8 Detach 2 | . 2 Swap 5 | . 5 Drop 7 | . 7 Fire 50 | . 50 Melee 6 | . 6 Ram 3 | . 3 Kick . | . . Crush . | . . Escape Stasis . | . . Rewire . | . . Trap . | . . Miscellaneous . | . . Route ------- -11/Scrapyard -10/Materials (discovered 4 exits: [*Mat x2] / [*Min] / [*Sub]) History --------- Turn | Location | Event 5 | -11/Scrapyard | Discovered new exit (range 14) 684 | -11/Scrapyard | Entered Materials 685 | -10/Materials | Build established: Mutant 841 | -10/Materials | Discovered new exit (range 14) 1046 | -10/Materials | Discovered new exit (range 3) 1120 | -10/Materials | Discovered new exit (range 12) 1152 | -10/Materials | Repaired Assault Rifle 1178 | -10/Materials | Repaired Hover Unit? 1485 | -10/Materials | Discovered new exit (range 7) 1552 | -10/Materials | Core integrity fell below 50% 1580 | -10/Materials | Core integrity fell below 20% 1612 | -10/Materials | Lost 5 parts (1p2n2w) 1617 | -10/Materials | Destroyed by G-47 Trooper with Particle Gun Last Messages --------------- Jacked K-01 Serf... >>parse_system Reading system data... K-01 Serf collects debris. K-01 Serf cleans the Fusion Modulator. Sneak attack on U-05 Engineer. Jacked U-05 Engineer... >>parse_system Reading system data... EXIT=FOUND W-16 Scout sends out distress signal. Datajack destroyed. Slammed into G-47 Trooper. Hover Unit destroyed. Lgt. Ion Engine destroyed. Hover Unit destroyed. G-47 Trooper heat damages Aluminum Leg, Particle Gun, Imp. Heat Sink. K-01 Serf cleans the Nuclear Reactor. Backup Laser I destroyed. Slammed into G-47 Trooper. Map ----- +----------------------------------------------------+ | ???????????## """ ########## | | ???????????## """ # # | | ???????????## """ # """ # | | ???????????## # """ # | | ???########## # """ |# | | ???########## """ # # | | ???## """ # """ [ # | | ???## < """ # """ + | | ???## # """ ^# | | ???#####+###### # # | | ???## # """ ########## | | ???## # """ ###^^ ^ ^ | | ???##==""""" # """ ###^ ^ | | ???## """"" # ### | | ???## """"" # ### ^ | | ???## # """ ### ^ """ | | ???## # """ ###^ ^ """ | | ???## # """ ### """ | | ???#######+#### ### | | ########## ### | | # # ^ """ | | # """ #^^ g """ ###### #"T"# | | # """ # """ u# ##+###### | | # """ # u# ## # | | # + g # ## """ # | | # # @ u ## """ + | | # # ##+##"T"### <# """ # | | # "Y" # # """### ## # | | # """ # # ##?# ### # | | ############# #??#x##?######### | | ????????????# #??###??????????? | | ????????????# #???????????????? | | ????????????# #???????????????? | | ????????????########???????????????? | | ???????????????????????????????????? | | ???????????????????????????????????? | | ???????????????????????????????????? | | ???????????????????????????????????? | | ???????????????????????????????????? | | ???????????????????????????????????? | | | | | | | | | | | | | | | | | | | | | +----------------------------------------------------+ Best States ------------- Heat Dissipation 25 Energy Generation 10 Energy Capacity 250 Matter Stores 300 Matter Capacity 300 Sight Range 16 Robot Scan Range 14 Terrain Scan Density 10 Evasion (%) 53 Recoil Reduction 2 Item Schematics ----------------- None Robot Schematics ------------------ None Fabricated ------------ Nothing Alien Tech Used ----------------- None Achievements -------------- None Challenges ------------ None Game ------ Seed IntegrityCooledUnit Manual? 0 Play Time 00:24:36 Cumulative 11.4 hours Start 2024.07.30 @ 23:53:08 End 2024.07.31 @ 02:30:49 Sessions 1 Manual Loads 0 Difficulty Rogue Special Mode None Game No. 21 Rogue 21 Adventurer 0 Explorer 0 Win Type - Total 0 Types 0/0/0/0/0/0/0/0/0 Lore% 13 Gallery% 18 Achievement% 16 Wizard Run 0 Options --------- Layout 1 ASCII 0 Keyboard 0 Movement Numpad Keybinds 0 Fullscreen 2 Font 32/SmallcapsGlow Map View 77x35 Zoom Use 0% Tactical HUD 0 Map Filters NONE Filters NONE Steam 1 RUN: 4accb3bc-c713-40f5-a1fc-b6c5ce9a6c8d